Cogmind - Beta 13 @@@ ROGUE MODE // 2024.04.27 @ 23:36:48 Player: trisiak Result: Destroyed by G-34 Mercenary with Small Laser Performance ------------- Evolutions (0) 0 Regions Visited (1) 200 Robots Destroyed (29) 145 Value Destroyed (541) 541 Prototype IDs (1) 20 Alien Tech Used (0) 0 Bonus (0) 0 TOTAL SCORE: 906 Bonus ------- None Cogmind --------- Core Integrity 0/250 Matter 250/300 Energy 99/125 System Corruption 0% Temperature Cool (11) Movement Treading (160) Location -10/Materials Parts ------- > --- POWER (1) -------- Light Ion Engine > --- PROPULSION (2) --- Light Treads Light Treads > --- UTILITY (2) ------ Large Storage Unit Hardened Light Armor Plating > --- WEAPON (2) ------- Light Assault Rifle Hammer > --- INVENTORY (15) --- Light Treads High-capacity Storage Unit High-capacity Storage Unit Large Matter Pod (150) Structural Scanner Structural Scanner Terrain Scan Processor Seismic Detector ECM Suite Tractor Beam EM Pulse Gun Peak State ------------ > --- POWER ------------ Heavy Ion Engine > --- PROPULSION ------- Light Treads Light Treads > --- UTILITY ---------- Large Storage Unit Hardened Light Armor Plating > --- WEAPON ----------- Light Assault Rifle Hammer > --- INVENTORY -------- Light Ion Engine Light Treads Light Treads High-capacity Storage Unit High-capacity Storage Unit Large Matter Pod Structural Scanner Structural Scanner Terrain Scan Processor Seismic Detector ECM Suite Tractor Beam EM Pulse Gun [Rating: 11] Favorites ----------- Power Heavy Ion Engine Engine Heavy Ion Engine Propulsion Light Treads Treads Light Treads Wheel Wheel Utility Structural Scanner Device Structural Scanner Storage Large Storage Unit Processor Signal Interpreter Protection Hardened Light Armor Plating Weapon Light Assault Rifle Ballistic Gun Light Assault Rifle Launcher Grenade Launcher Impact Weapon Hammer Build | -11 -10 ------- Run | Yrd Mat Slots Evolved . | . . Power . | . . Propulsion . | . . Utility . | . . Weapon . | . . Parts Attached 44 | 7 37 Power 6 | 2 4 Engine 6 | 2 4 Core . | . . Reactor . | . . Propulsion 17 | 2 15 Treads 7 | . 7 Leg . | . . Wheel 10 | 2 8 Hover . | . . Flight . | . . Utility 7 | 1 6 Device 1 | . 1 Storage 3 | 1 2 Processor 1 | . 1 Hackware . | . . Protection 2 | . 2 Artifact . | . . Weapon 14 | 2 12 Energy Gun . | . . Energy Cannon . | . . Ballistic Gun 8 | 2 6 Ballistic Cannon . | . . Launcher 4 | . 4 Special Weapon . | . . Impact Weapon 2 | . 2 Slashing Weapon . | . . Piercing Weapon . | . . Special Melee Weapon . | . . Unidentified Prototypes 1 | . 1 Parts Lost 4 | . 4 Power 1 | . 1 Propulsion 1 | . 1 Utility . | . . Weapon 2 | . 2 Highest Loss Streak 1 | . 1 To Critical Strikes . | . . Average Slot Usage (%) 99 | . 99 Engine 14 | . 14 Treads 15 | . 15 Wheel 12 | . 12 Device 10 | . 10 Storage 10 | . 10 Processor 1 | . 1 Protection 4 | . 4 Ballistic Gun 17 | . 17 Launcher 4 | . 4 Impact Weapon 5 | . 5 Naked Turns . | . . Heaviest Build 53 | 10 53 Greatest Support 40 | 20 40 Greatest Overweight (x) 8 | . 8 Average Overweight (x) . | . . Largest Inventory Capacity 20 | 5 20 Average Capacity 12 | 5 12 Most Carried 18 | 4 18 Average Carried 10 | 1 11 Final Capacity 15 | 5 15 Final Carried 11 | 4 11 Class Distribution -------------------- 100% | Mutant Dominant Class ---------------- Mutant | -10/Materials Resources | -11 -10 ----------- Run | Yrd Mat Matter Collected 1305 | 288 1017 Remotely . | . . Salvage Created 760 | 40 720 Parts 50 | 6 44 Haulers Intercepted 2 | . 2 Recyclers Shooed 3 | . 3 Parts Field Recycled . | . . Retrieved Matter . | . . Parts Self-Destructed . | . . Prevented . | . . Kills | -11 -10 ------- Run | Yrd Mat Combat Hostiles Destroyed 20 | 1 19 Melee 1 | . 1 Guns 9 | 1 8 AOE 6 | . 6 Classes Destroyed 8 | 2 6 Worker 3 | 1 2 Builder 1 | . 1 Hauler 2 | . 2 Recycler 1 | . 1 Mechanic 1 | . 1 Operator 1 | . 1 Swarmer 9 | . 9 Grunt 11 | 1 10 Best Kill Streak 6 | 1 6 Combat Bots Only 6 | 1 6 Max Kills in Single Turn 3 | 1 3 Gunslinging . | . . Exploded 3 | . 3 Melee 1 | . 1 Uniques/NPCs Destroyed . | . . Combat | -11 -10 -------- Run | Yrd Mat Hostile Shots Fired 138 | 7 131 Missed 22 | 2 20 Damage Taken 1300 | 58 1242 Core 257 | 12 245 Absorbed by Shields . | . . Core Remaining (%) 95 | 95 . Volleys Fired 98 | 6 92 Largest 2 | 2 2 Hottest 50 | 40 50 Shots Fired 139 | 12 127 Gun 131 | 12 119 Cannon . | . . Launcher 8 | . 8 Special . | . . Kinetic 131 | 12 119 Thermal . | . . Explosive 8 | . 8 Electromagnetic . | . . Robot Hit Streak 7 | 5 7 Robot Miss Streak 5 | 3 5 Penetration Max . | . . Secondary Targets . | . . Shots Hit Robots 98 | 8 90 Core Hits 42 | 3 39 Critical Kills 1 | . 1 Critical Parts Destroyed 5 | . 5 Critical Strikes 6 | . 6 Destroy 2 | . 2 Smash 4 | . 4 Melee Attacks 29 | . 29 Impact 29 | . 29 Slashing . | . . Piercing . | . . Sneak Attacks . | . . Combat Hostiles . | . . Follow-up Attacks . | . . Damage Inflicted 1753 | 87 1666 Guns 739 | 87 652 Cannons . | . . Explosions 637 | . 637 Melee 377 | . 377 Ramming . | . . Kinetic 739 | 87 652 Thermal 224 | . 224 Explosive 413 | . 413 Electromagnetic . | . . Impact 377 | . 377 Slashing . | . . Piercing . | . . Highest Corruption . | . . Average Corruption . | . . Corruption Purged . | . . Corruption Blocked . | . . Overload Shots . | . . Overflow Damage 172 | . 172 Projectiles . | . . Explosions 55 | . 55 Melee 117 | . 117 Knockbacks 8 | . 8 Impact 8 | . 8 Kinetic . | . . Secondary . | . . Self-Inflicted Damage 57 | . 57 Shots 2 | . 2 Rammed . | . . Targets Rammed . | . . Kicked . | . . Crushed . | . . Highest Temperature 44 | 6 44 Average Temperature 8 | 6 9 Received Heat Transfer 594 | 30 564 Siege Activations . | . . Robots Corrupted . | . . Combat Hostiles . | . . Parts Fried 9 | . 9 Impact Corruptions 8 | . 8 Robots Melted . | . . Combat Hostiles . | . . Parts Melted . | . . Heat Transferred 150 | . 150 Parts Sabotaged . | . . Parts Stolen . | . . Parts Stripped . | . . Power Chain Reactions . | . . Alert | -11 -10 ------- Run | Yrd Mat Peak Influence 271 | 25 271 Initial 16 | . 16 Average 139 | 4 147 Maximum Alert Level 1 | . 1 Low Security (%) 67 | 100 65 Level 1 32 | . 34 Level 2 . | . . Level 3 . | . . Level 4 . | . . Level 5 . | . . High Security . | . . Max Security . | . . Squads Dispatched 5 | . 5 Investigation 3 | . 3 Extermination . | . . Reinforcement 2 | . 2 Assault . | . . Garrison . | . . Intercept . | . . Searches Triggered . | . . Construction Impeded . | . . Haulers Reinforced . | . . Active Scanning Responses . | . . Cargo Convoy Interrupts . | . . Stealth | -11 -10 --------- Run | Yrd Mat Distress Signals 1 | . 1 Communications Jammed . | . . Distress Signals . | . . Times Spotted 37 | 1 36 Peak Tracking Total 6 | 1 6 Tactical Retreats 2 | . 2 Traps | -11 -10 ------- Run | Yrd Mat Traps Triggered 1 | . 1 Indirectly . | . . Trap Hack Attempts . | . . Triggered . | . . Disarmed . | . . Reprogrammed . | . . Reused . | . . Traps Extracted . | . . Installed . | . . Triggered . | . . Machines | -11 -10 ---------- Run | Yrd Mat Machines Disabled 3 | . 3 Max in Single Turn 1 | . 1 Machines Repaired . | . . Machines Dismantled . | . . Machines Sabotaged . | . . Overloaded Fab Kills . | . . Hacking | -11 -10 --------- Run | Yrd Mat Machines Accessed 8 | . 8 Terminals 7 | . 7 Fabricators . | . . Repair Stations . | . . Recycling Units 1 | . 1 Scanalyzers . | . . Garrison Access . | . . Total Hacks 31 | . 31 Successful 15 | . 15 Failed 16 | . 16 Catastrophic 3 | . 3 Database Lockouts . | . . Manual 17 | . 17 Terminals 25 | . 25 Fabricators . | . . Repair Stations . | . . Recycling Units 6 | . 6 Scanalyzers . | . . Garrison Access . | . . Terminal Hacks 7 | . 7 Branch Access Points 1 | . 1 Alert Level 1 | . 1 Unreport Threat 1 | . 1 Locate Traps 2 | . 2 Hauler Manifests 1 | . 1 Zone Layout 1 | . 1 Fabricator Hacks . | . . Repair Station Hacks . | . . Recycling Unit Hacks 1 | . 1 Report Inventory 1 | . 1 Scanalyzer . | . . Garrison Access Hacks . | . . Unauthorized Hacks 7 | . 7 Terminals 5 | . 5 Botnet 5 | . 5 Fabricators . | . . Repair Stations . | . . Recycling Units 2 | . 2 Reject 1 | . 1 Mask 1 | . 1 Scanalyzers . | . . Garrison Access . | . . Data Cores Recovered . | . . Used . | . . Hacking Detections 7 | . 7 Full Trace Events 6 | . 6 Feedback Events . | . . Feedback Blocked . | . . Robot Schematics Acquired . | . . Robots Built . | . . Authchips . | . . Time . | . . Total Robot Build Rating . | . . Part Schematics Acquired . | . . Parts Built . | . . Authchips . | . . Time . | . . Total Part Build Rating . | . . Parts Repaired . | . . Time . | . . Parts Recycled . | . . Recycled Matter . | . . Retrieved Matter . | . . Retrieved Components . | . . Parts Scanalyzed . | . . Part Schematics Acquired . | . . Parts Damaged . | . . Bothacking | -11 -10 ------------ Run | Yrd Mat Used RIF Installer . | . . Robots Hacked . | . . Non-combat . | . . Combat . | . . Robot Hacks Applied . | . . Relay Couplers Released . | . . Fabnet Peak Effective % . | . . Robots Rewired . | . . Allies Hacked . | . . Hacks Repelled . | . . Allies | -11 -10 -------- Run | Yrd Mat Total Allies . | . . Largest Group . | . . Highest-Rated Group . | . . Highest-Rated Ally . | . . Total Orders . | . . Ally Attacks . | . . Total Damage . | . . Kills . | . . Allies Corrupted . | . . Allies Melted . | . . Intel | -11 -10 ------- Run | Yrd Mat Robot Analysis Total . | . . Derelict Logs Recovered . | . . Drone Launches . | . . Drone Recoveries . | . . Exploration | -11 -10 ------------- Run | Yrd Mat Turns Passed 1707 | 88 1619 Spaces Moved 1053 | 78 975 Core 16 | 15 1 Treads 410 | . 410 Legs . | . . Wheels 627 | 63 564 Hover . | . . Flight . | . . Fastest Speed 50 | 50 80 Average Speed 116 | 74 120 Slowest Speed 450 | 80 450 Overloaded Moves . | . . Propulsion Burnouts . | . . Robots Hopped . | . . Cave-ins Triggered . | . . Exploration Rate (%) 52 | 9 96 Regions Visited 1 Branch Regions . Pre-discovered Areas . | . . Known Exits Taken . | . . Unknown Exits Taken 1 | 1 . Scrap Searched . | . . Spaces Dug 18 | . 18 Terrain Destroyed 64 | . 64 Melee 1 | . 1 Projectile . | . . AOE 63 | . 63 Terrain Rammed . | . . Walls Destroyed . | . . Machines Disabled . | . . Actions | -11 -10 --------- Run | Yrd Mat Total 1352 | 93 1259 Wait 78 | . 78 Move 1052 | 77 975 Hop . | . . Pick Up 29 | 3 26 Fast Attach 12 | 6 6 Attach 5 | . 5 Detach 2 | . 2 Swap 27 | 1 26 Drop 20 | . 20 Fire 98 | 6 92 Melee 29 | . 29 Ram . | . . Kick . | . . Crush . | . . Escape Stasis . | . . Rewire . | . . Trap . | . . Miscellaneous . | . . Route ------- -11/Scrapyard -10/Materials (discovered 4 exits: *Mat x3 / *Min) History --------- Turn | Location | Event 2 | -11/Scrapyard | Met Revision 17 64 | -11/Scrapyard | Discovered new exit (range 8) 89 | -11/Scrapyard | Entered Materials 312 | -10/Materials | Build established: Mutant 526 | -10/Materials | Discovered new exit (range 6) 897 | -10/Materials | Discovered new exit (range 10) 929 | -10/Materials | Identified exit to Mines 1221 | -10/Materials | Discovered new exit (range 16) 1301 | -10/Materials | Core integrity fell below 50% 1448 | -10/Materials | Identified exit to Materials 1648 | -10/Materials | Core integrity fell below 20% 1708 | -10/Materials | Destroyed by G-34 Mercenary with Small Laser Last Messages --------------- 01463_ Acquired 10 matter. 01599_ K-01 Serf collects debris. 01613_ W-16 Scout sends out distress signal. 01625_ Connecting with Terminal... >>Trojan(Botnet) Trojan loaded successfully. Testing... Terminal linked with 3 systems. Awaiting botnet instructions. >>Alert(Purge) Purged threat record, alert level lowered. 01652_ Discarded Signal Interpreter. 01663_ Lgt. Treads destroyed. 01670_ Destroyed Heat Sink. 01670_ G-34 Mercenary system corrupted by crushing effect. 01670_ G-34 Mercenary knocked back. 01680_ Ion Engine fried. 01680_ G-34 Mercenary destroyed. 01685_ K-01 Serf collects debris. 01706_ Hvy. Ion Engine destroyed. Map ----- +----------------------------------------------------+ | | | | | | | | | | | | | | | | | ?????????????????????????????????????????????????? | | ????????????#############????????????????????????? | | ????????????#############????????????????????????? | | ????????###### ##????????????????????????? | | ????????###### """ """ ##????????????????????????? | | ????????## # """ """ ##?????#####??????????????? | | ????????## < # """ """ ##????##"""##?????????????? | | ????????## # """ """ ##???##"!!!"##????????????? | | ????????## + """ """ ##???#"" ""#????????????? | | ????????## #^ ##???# #????????????? | | ####??#### # ##???# > #????????????? | | ########## #########+##???# #????????????? | | ####### ######## ##???# #????????????? | | ##????## ##????# ##????????????? | | ##???### ######## ##########?????? | | ######## ######## # #?????? | | ###+### ####### =+% """ #?????? | | ### ########## @ gr # """ #?????? | | ### ########## # """ #?????? | | ### ## # ## k # #?????? | | ### ## + ## # #?????? | | ### ## = # ## # #?????? | | ### ########## ## # "T" #?????? | | ### ####### ## + #?????? | | ### + #### ####################?????? | | ### # #### # #####?????????????? | | ######## #### + "" ##????????????????? | | ####### #### # T" ##????????????????? | | ##???## #### # "" ##????????????????? | | ##???## ######+# ##????????????????? | | ##???############# # ######????????????? | | ##???############# T #############????????????? | | ##??????????????## #### ##???########## | | #########???????##! #### """"" ##???########## | | #########???????##!! #### """"" ##???## # | | ##???????## #### """"" ####### [ " # | | ########### #### ####### """ # | | ###############+#########+## # """ # | | ##### # ! """ # | | ##### + "" # | | ???## # """ # | | ???## #### ####################+## # "" # | +----------------------------------------------------+ Best States ------------- Heat Dissipation 25 Energy Generation 14 Energy Capacity 280 Matter Stores 307 Matter Capacity 400 Sight Range 16 Terrain Scan Density 10 Armor Coverage 150 Evasion (%) 50 Recoil Reduction 2 Item Schematics ----------------- None Robot Schematics ------------------ None Fabricated ------------ Nothing Alien Tech Used ----------------- None Achievements -------------- None Challenges ------------ None Game ------ Seed LightDefenseBank Manual? 0 Play Time 00:29:16 Cumulative 58.2 hours Start 2024.04.27 @ 23:05:09 End 2024.04.27 @ 23:36:48 Sessions 3 Manual Loads 0 Difficulty Rogue Special Mode None Game No. 7 Rogue 1 Adventurer 6 Explorer 0 Win Type - Total 1 Types 1/0/0/0/0/0/0/0/0 Lore% 16 Gallery% 27 Achievement% 28 Wizard Run 0 Options --------- Layout 0 ASCII 0 Keyboard 1 Movement Vi Keybinds 0 Fullscreen 1 Font 18/SmallcapsGlow Map View 66x52 Zoom Use 0% Tactical HUD 1 Map Filters NONE Filters NONE Steam 0 RUN: 886862f3-5f8a-4eae-beea-0fc4c1035638